fUSD/lending_fUSD_20240222
["ID","MTS","AMOUNT","RATE_DAILY","PERIOD"]
[314898907,1708625515601,-1569.8,0.00033561,4]
[314898908,1708625515610,-1347.04,0.00033561,4]
[314898909,1708625515620,-647.141138,0.00033561,7]
[314898910,1708625515630,-647.141138,0.00033561,7]
[314898911,1708625515639,-1930.76,0.00033561,4]
[314898912,1708625515649,-500.0,0.00033561,4]
[314898913,1708625515658,-266.013848,0.00033561,7]
[314898914,1708625515669,-266.013848,0.00033561,7]
[314898915,1708625515679,-1578.95,0.00033561,4]
[314898916,1708625515689,-654.06,0.00033561,4]
[314898917,1708625515699,-266.013848,0.00033561,7]
[314898918,1708625515709,-266.013848,0.00033561,7]
[314898919,1708625515719,-503.76,0.00033561,4]
[314898920,1708625515728,-1152.52,0.00033561,4]
[314898921,1708625515738,-1562.64,0.00033561,4]
[314898922,1708625515747,-13046.67,0.00033561,4]
[314898923,1708625515757,-500.0,0.00033561,4]
[314898924,1708625515766,-554.48,0.00033561,4]
[314898925,1708625515776,-5718.46,0.00033561,4]
[314898926,1708625515785,-585.24,0.00033561,4]
[314898927,1708625515795,-4320.81,0.00033561,4]
[314898928,1708625515804,-1143.61,0.00033561,4]
[314898929,1708625515814,-500.0,0.00033561,4]
[314898930,1708625515823,-649.169362,0.00033561,7]
[314898931,1708625515833,-649.169362,0.00033561,7]
[314898932,1708625515842,-3703.9,0.00033561,4]
[314898933,1708625515852,-500.0,0.00033561,4]
[314898934,1708625515861,-500.0,0.00033561,4]
[314898935,1708625515871,-649.169362,0.00033561,7]
[314898936,1708625515885,-649.169362,0.00033561,7]
[314898937,1708625515895,-845.41,0.00033561,4]
[314898938,1708625515905,-1239.69,0.00033561,4]
[314898939,1708625515914,-500.0,0.00033561,4]
[314898940,1708625515925,-842.27,0.00033561,4]
[314898941,1708625515935,-2562.83,0.00033561,4]
[314898942,1708625515945,-1082.3,0.00033561,4]
[314898943,1708625515955,-192.527771,0.00033561,7]
[314898944,1708625515965,-968.09,0.00033561,4]
[314898945,1708625515974,-192.527771,0.00033561,7]
[314898946,1708625515983,-500.0,0.00033561,2]
[314898947,1708625515992,-192.527771,0.00033561,7]
[314898948,1708625516001,-2763.17,0.00033561,4]
[314898949,1708625516010,-192.527771,0.00033561,7]
[314898950,1708625516019,-1672.02,0.00033561,4]
[314898951,1708625516029,-500.0,0.00033561,4]
[314898952,1708625516038,-500.0,0.00033561,4]
[314898953,1708625516047,-850.13,0.00033561,4]
[314898954,1708625516056,-668.88,0.00033561,4]
[314898955,1708625516066,-1634.02,0.00033561,4]
[314898956,1708625516076,-500.0,0.00033561,4]
[314898957,1708625516085,-3311.96,0.00033561,4]
[314898958,1708625516095,-1279.14,0.00033561,4]
[314898959,1708625516104,-930.33,0.00033561,4]
[314898960,1708625516114,-2625.59,0.00033561,4]
[314898961,1708625516123,-619.14,0.00033561,4]
[314898962,1708625516132,-1635.09,0.00033561,4]
[314898963,1708625516142,-2609.74,0.00033561,4]
[314898964,1708625516151,-3610.42,0.00033561,4]
[314898965,1708625516160,-967.22,0.00033561,4]
[314898966,1708625516170,-310.972495,0.00033561,7]
[314898967,1708625516179,-310.972495,0.00033561,7]
[314898968,1708625516188,-923.8,0.00033561,4]
[314898969,1708625516198,-1343.66,0.00033561,4]
[314898970,1708625516208,-2303.413771,0.00033561,7]
[314898971,1708625516218,-2303.413771,0.00033561,7]
[314898972,1708625516227,-500.0,0.00033561,4]
[314898973,1708625516237,-310.972495,0.00033561,7]
[314898974,1708625516247,-1380.71,0.00033561,4]
[314898975,1708625516256,-310.972495,0.00033561,7]
[314898976,1708625516266,-1594.46,0.00033561,4]
[314898977,1708625516276,-8671.59,0.00033561,4]
[314898978,1708625516285,-1079.87,0.00033561,4]
[314898979,1708625516294,-187.799838,0.00033561,7]
[314898980,1708625516304,-2303.413771,0.00033561,7]
[314898981,1708625516313,-1411.77,0.00033561,4]
[314898982,1708625516322,-187.799838,0.00033561,7]
[314898983,1708625516332,-2303.413771,0.00033561,7]
[314898984,1708625516342,-150.0,0.00033576,2]
[314898985,1708625516351,-150.0,0.00033584,2]
[314898986,1708625516361,-150.0,0.00033586,2]
[314898987,1708625516370,-150.0,0.00033591,2]
[314898988,1708625516380,-150.0,0.00033599,2]
[314898989,1708625516389,-200.0,0.000336,7]
[314898990,1708625516401,-3000.0,0.000336,2]
[314898991,1708625516412,-3000.0,0.000336,16]
[314898992,1708625516421,-200.0,0.000336,2]
[314898993,1708625516431,-150.0,0.00033602,2]
[314898994,1708625516440,-150.0,0.00033602,2]
[314898995,1708625516450,-150.0,0.00033603,2]
[314898996,1708625516460,-150.0,0.00033607,2]
[314898997,1708625516469,-150.0,0.00033609,2]
[314898998,1708625516479,-3000.0,0.0003361,16]
[314898999,1708625516488,-150.0,0.00033616,2]
[314899000,1708625516497,-5498.765414,0.0003362,16]
[314899001,1708625516507,-150.0,0.00033622,2]
[314899002,1708625516516,-150.0,0.00033625,2]
[314899003,1708625516526,-150.0,0.00033627,2]
[314899004,1708625516536,-150.0,0.00033631,2]
[314899005,1708625516545,-187.64,0.0003364,2]
[314899006,1708625516555,-150.0,0.00033642,2]
[314899007,1708625516564,-300.0,0.00033642,2]
[314899008,1708625516574,-150.0,0.00033646,2]
[314899009,1708625516584,-150.0,0.00033656,2]
[314899010,1708625516594,-1500.0,0.00033675,2]
[314899011,1708625516603,-150.0,0.00033676,2]
[314899012,1708625516613,-150.0,0.0003368,2]
[314899013,1708625516622,-173.963344,0.00033683,2]
[314899014,1708625516631,-150.0,0.00033685,2]
[314899015,1708625516641,-150.0,0.00033686,2]
[314899016,1708625516651,-102607.81466299,0.0003369,2]
[314899017,1708625516660,-500.0,0.00033698,4]
[314899018,1708625516669,-500.0,0.00033698,4]
[314899019,1708625516679,-500.0,0.00033698,4]
[314899020,1708625516689,-500.0,0.00033698,4]
[314899021,1708625516698,-500.0,0.00033698,4]
[314899022,1708625516707,-500.0,0.00033698,4]
[314899023,1708625516717,-500.0,0.00033698,4]
[314899024,1708625516726,-500.0,0.00033698,4]
[314899025,1708625516735,-500.0,0.00033698,4]
[314899026,1708625516745,-500.0,0.00033698,4]
[314899027,1708625516754,-500.0,0.00033698,4]
[314899028,1708625516763,-500.0,0.00033698,4]
[314899029,1708625516773,-500.0,0.00033698,4]
[314899030,1708625516782,-500.0,0.00033698,2]
[314899031,1708625516791,-546.60268933,0.00033698,4]
[314899032,1708625516800,-514.99,0.00033698,4]
[314899033,1708625516810,-500.0,0.00033698,4]
[314899034,1708625516819,-500.0,0.00033698,4]
[314899035,1708625516829,-555.79,0.00033698,4]
[314899036,1708625516839,-500.0,0.00033698,4]
[314899037,1708625516848,-500.0,0.00033698,4]
[314899038,1708625516857,-641.75,0.00033698,4]
[314899039,1708625516866,-500.0,0.00033698,4]
[314899040,1708625516876,-750.74,0.00033698,4]
[314899041,1708625516886,-500.0,0.00033698,4]
[314899042,1708625516895,-500.0,0.00033698,4]
[314899043,1708625516905,-500.0,0.00033698,4]
[314899044,1708625516914,-500.0,0.00033698,4]
[314899045,1708625516925,-500.0,0.00033698,4]
[314899046,1708625516935,-542.31,0.00033698,4]
[314899047,1708625516944,-500.0,0.00033698,4]
[314899048,1708625516955,-621.21,0.00033698,4]
[314899049,1708625516966,-500.0,0.00033698,4]
[314899050,1708625516975,-500.0,0.00033698,4]
[314899051,1708625516985,-231.46,0.00033698,7]
[314899052,1708625516994,-250.0,0.00033698,4]
[314899053,1708625517003,-231.46,0.00033698,7]
[314899054,1708625517012,-551.07,0.00033698,4]
[314899055,1708625517021,-500.0,0.00033698,4]
[314899056,1708625517031,-258.82180991,0.00033698,4]
[314899057,1708625517040,-744.09,0.00033698,4]
[314899058,1708625517050,-511.29709236,0.00033698,4]
[314899059,1708625517059,-500.0,0.00033698,4]
[314899060,1708625517069,-281.31047676,0.00033698,4]
[314899061,1708625517079,-554.99854016,0.00033698,4]
[314899062,1708625517088,-500.0,0.00033698,4]
[314899063,1708625517097,-500.0,0.00033698,4]
[314899064,1708625517106,-500.0,0.00033698,4]
[314899065,1708625517116,-573.53,0.00033698,4]
[314899066,1708625517125,-500.0,0.00033698,4]
[314899067,1708625517135,-500.0,0.00033698,4]
[314899068,1708625517144,-151.0,0.00033698,7]
[314899069,1708625517153,-500.0,0.00033698,4]
[314899070,1708625517163,-500.0,0.00033698,4]
[314899071,1708625517172,-500.0,0.00033698,4]
[314899072,1708625517184,-500.0,0.00033698,4]
[314899073,1708625517216,-500.0,0.00033698,4]
[314899074,1708625517226,-500.0,0.00033698,4]
[314899075,1708625517235,-500.0,0.00033698,4]
[314899076,1708625517245,-500.0,0.00033698,4]
[314899077,1708625517254,-500.0,0.00033698,4]
[314899078,1708625517263,-500.0,0.00033698,4]
[314899079,1708625517272,-524.07,0.00033698,4]
[314899080,1708625517281,-500.0,0.00033698,4]
[314899081,1708625517290,-951.85,0.00033698,4]
[314899082,1708625517299,-500.0,0.00033698,4]
[314899083,1708625517308,-926.28,0.00033698,4]
[314899084,1708625517318,-744.11,0.00033698,4]
[314899085,1708625517327,-529.22,0.00033698,4]
[314899086,1708625517337,-500.0,0.00033698,4]
[314899087,1708625517346,-500.0,0.00033698,4]
[314899088,1708625517357,-500.0,0.00033698,4]
[314899089,1708625517366,-500.0,0.00033698,4]
[314899090,1708625517376,-1143.73,0.00033698,4]
[314899091,1708625517386,-500.0,0.00033698,4]
[314899092,1708625517400,-500.0,0.00033698,4]
[314899093,1708625517410,-500.0,0.00033698,4]
[314899094,1708625517421,-151.0,0.00033698,3]
[314899095,1708625517431,-779.36,0.00033698,4]
[314899096,1708625517442,-500.0,0.00033698,4]
[314899097,1708625517452,-635.41,0.00033698,4]
[314899098,1708625517462,-555.19,0.00033698,4]
[314899099,1708625517472,-500.0,0.00033698,4]
[314899100,1708625517483,-500.0,0.00033698,4]
[314899101,1708625517493,-500.0,0.00033698,4]
[314899102,1708625517503,-500.0,0.00033698,4]
[314899103,1708625517513,-151.0,0.00033698,7]
[314899104,1708625517523,-822.26,0.00033698,4]
[314899105,1708625517533,-769.66,0.00033698,4]
[314899106,1708625517543,-500.0,0.00033698,4]
[314899107,1708625517553,-500.0,0.00033698,4]
[314899108,1708625517563,-500.0,0.00033698,4]
[314899109,1708625517573,-500.0,0.00033698,4]
[314899110,1708625517583,-889.62,0.00033698,4]
[314899111,1708625517593,-634.08,0.00033698,4]
[314899112,1708625517603,-500.0,0.00033698,4]
[314899113,1708625517613,-567.01,0.00033698,4]
[314899114,1708625517623,-721.11,0.00033698,4]
[314899115,1708625517633,-653.98,0.00033698,4]
[314899116,1708625517642,-659.59,0.00033698,4]
[314899117,1708625517652,-500.0,0.00033698,4]
[314899118,1708625517662,-951.61,0.00033698,4]
[314899119,1708625517671,-627.93,0.00033698,4]
[314899120,1708625517681,-1016.3,0.00033698,4]
[314899121,1708625517691,-481.651988,0.00033698,7]
[314899122,1708625517700,-677.11,0.00033698,4]
[314899123,1708625517711,-500.0,0.00033698,4]
[314899124,1708625517721,-668.92,0.00033698,4]
[314899125,1708625517730,-746.18,0.00033698,4]
[314899126,1708625517741,-169.39065846,0.00033698,4]
[314899127,1708625517751,-481.651988,0.00033698,7]
[314899128,1708625517762,-655.97,0.00033698,4]
[314899129,1708625517772,-500.0,0.00033698,4]
[314899130,1708625517783,-500.0,0.00033698,4]
[314899131,1708625517793,-944.62,0.00033698,4]
[314899132,1708625517804,-500.0,0.00033698,4]
[314899133,1708625518066,-500.0,0.00033698,4]
[314899134,1708625518076,-500.0,0.00033698,4]
[314899135,1708625518086,-500.0,0.00033698,4]
[314899136,1708625518095,-804.18,0.00033698,4]
[314899137,1708625518104,-535.66,0.00033698,4]
[314899138,1708625518114,-936.27,0.00033698,4]
[314899139,1708625518124,-500.0,0.00033698,4]
[314899140,1708625518133,-573.6,0.00033698,4]
[314899141,1708625518143,-156.950667,0.00033698,7]
[314899142,1708625518152,-500.0,0.00033698,4]
[314899143,1708625518162,-573.73,0.00033698,4]
[314899144,1708625518171,-156.950667,0.00033698,7]
[314899145,1708625518181,-906.98,0.00033698,4]
[314899146,1708625518192,-625.48,0.00033698,4]
[314899147,1708625518202,-619.25,0.00033698,4]
[314899148,1708625518211,-802.24,0.00033698,4]
[314899149,1708625518221,-533.5578801,0.00033698,4]
[314899150,1708625518230,-553.85,0.00033698,4]
[314899151,1708625518240,-951.64,0.00033698,4]
[314899152,1708625518250,-500.0,0.00033698,4]
[314899153,1708625518259,-694.67,0.00033698,4]
[314899154,1708625518270,-500.0,0.00033698,4]
[314899155,1708625518280,-500.0,0.00033698,4]
[314899156,1708625518290,-991.06,0.00033698,4]
[314899157,1708625518300,-500.0,0.00033698,4]
[314899158,1708625518309,-676.95,0.00033698,4]
[314899159,1708625518318,-500.0,0.00033698,4]
[314899160,1708625518328,-764.63,0.00033698,4]
[314899161,1708625518337,-500.0,0.00033698,4]
[314899162,1708625518347,-508.78,0.00033698,4]
[314899163,1708625518357,-500.0,0.00033698,4]
[314899164,1708625518366,-500.0,0.00033698,2]
[314899165,1708625518375,-802.5,0.00033698,4]
[314899166,1708625518384,-664.95,0.00033698,4]
[314899167,1708625518394,-502.55240275,0.00033698,4]
[314899168,1708625518405,-692.13,0.00033698,4]
[314899169,1708625518415,-632.57,0.00033698,4]
[314899170,1708625518425,-509.92,0.00033698,4]
[314899171,1708625518434,-500.0,0.00033698,4]
[314899172,1708625518444,-500.0,0.00033698,4]
[314899173,1708625518454,-607.02,0.00033698,4]
[314899174,1708625518464,-792.22,0.00033698,4]
[314899175,1708625518473,-500.0,0.00033698,4]
[314899176,1708625518483,-1057.84,0.00033698,4]
[314899177,1708625518492,-500.0,0.00033698,4]
[314899178,1708625518502,-967.9,0.00033698,4]
[314899179,1708625518511,-1015.71,0.00033698,4]
[314899180,1708625518520,-500.0,0.00033698,4]
[314899181,1708625518529,-1057.91,0.00033698,4]
[314899182,1708625518539,-500.0,0.00033698,4]
[314899183,1708625518548,-500.0,0.00033698,4]
[314899184,1708625518558,-1562.84,0.00033698,4]
[314899185,1708625518567,-500.0,0.00033698,2]
[314899186,1708625518577,-908.7,0.00033698,4]
[314899187,1708625518586,-574.22,0.00033698,4]
[314899188,1708625518595,-1195.95,0.00033698,4]
[314899189,1708625518605,-500.0,0.00033698,4]
[314899190,1708625518614,-500.0,0.00033698,4]
[314899191,1708625518623,-173.94733881,0.00033698,4]
[314899192,1708625518633,-151.0,0.00033698,7]
[314899193,1708625518642,-711.8,0.00033698,4]
[314899194,1708625518652,-219.08393043,0.00033698,4]
[314899195,1708625518661,-643.93,0.00033698,4]
[314899196,1708625518670,-162.017263,0.00033698,7]
[314899197,1708625518680,-500.0,0.00033698,4]
[314899198,1708625518689,-690.36,0.00033698,4]
[314899199,1708625518701,-500.0,0.00033698,4]
[314899200,1708625518711,-582.2,0.00033698,4]
[314899201,1708625518720,-623.27,0.00033698,4]
[314899202,1708625518730,-808.11,0.00033698,4]
[314899203,1708625518739,-500.0,0.00033698,4]
[314899204,1708625518749,-955.15,0.00033698,4]
[314899205,1708625518759,-500.0,0.00033698,4]
[314899206,1708625518769,-151.0,0.00033698,7]
[314899207,1708625518779,-500.0,0.00033698,2]
[314899208,1708625518789,-520.41,0.00033698,4]
[314899209,1708625518799,-500.0,0.00033698,4]
[314899210,1708625518808,-642.76,0.00033698,4]
[314899211,1708625518818,-500.0,0.00033698,4]
[314899212,1708625518828,-500.0,0.00033698,4]
[314899213,1708625518839,-500.0,0.00033698,4]
[314899214,1708625518849,-814.72,0.00033698,4]
[314899215,1708625518859,-763.81,0.00033698,4]
[314899216,1708625518869,-500.0,0.00033698,4]
[314899217,1708625518883,-500.0,0.00033698,4]
[314899218,1708625518893,-920.28,0.00033698,4]
[314899219,1708625518902,-595.79,0.00033698,4]
[314899220,1708625518912,-500.0,0.00033698,4]
[314899221,1708625518921,-151.0,0.00033698,7]
[314899222,1708625518931,-616.74,0.00033698,4]
[314899223,1708625518941,-693.29,0.00033698,4]
[314899224,1708625518953,-704.13,0.00033698,4]
[314899225,1708625518963,-970.8,0.00033698,4]
[314899226,1708625518972,-523.23,0.00033698,4]
[314899227,1708625518982,-552.1,0.00033698,4]
[314899228,1708625518991,-569.97,0.00033698,4]
[314899229,1708625519000,-500.0,0.00033698,4]
[314899230,1708625519010,-546.34,0.00033698,4]
[314899231,1708625519019,-500.0,0.00033698,4]
[314899232,1708625519028,-272.392206,0.00033698,7]
[314899233,1708625519038,-597.14,0.00033698,4]
[314899234,1708625519048,-272.392206,0.00033698,7]
[314899235,1708625519057,-936.39,0.00033698,4]
[314899236,1708625519067,-500.0,0.00033698,4]
[314899237,1708625519077,-500.0,0.00033698,4]
[314899238,1708625519086,-500.0,0.00033698,4]
[314899239,1708625519095,-1000.0,0.00033698,7]
[314899240,1708625519106,-1322.67,0.00033698,4]
[314899241,1708625519115,-570.86,0.00033698,4]
[314899242,1708625519125,-513.58,0.00033698,4]
[314899243,1708625519135,-500.0,0.00033698,4]
[314899244,1708625519145,-500.0,0.00033698,4]
[314899245,1708625519155,-652.66,0.00033698,4]
[314899246,1708625519165,-500.0,0.00033698,4]
[314899247,1708625519174,-500.0,0.00033698,4]
[314899248,1708625519183,-905.48,0.00033698,4]
[314899249,1708625519192,-500.0,0.00033698,4]
[314899250,1708625519203,-500.0,0.00033698,4]
[314899251,1708625519212,-902.91,0.00033698,4]
[314899252,1708625519222,-514.19340767,0.00033698,4]
[314899253,1708625519231,-500.0,0.00033698,4]
[314899254,1708625519241,-577.69,0.00033698,4]
[314899255,1708625519250,-505.22095577,0.00033698,4]
[314899256,1708625519260,-500.0,0.00033698,4]
[314899257,1708625519270,-1566.96,0.00033698,4]
[314899258,1708625519279,-500.0,0.00033698,4]
[314899259,1708625519289,-567.92,0.00033698,4]
[314899260,1708625519298,-885.89,0.00033698,4]
[314899261,1708625519308,-642.58,0.00033698,4]
[314899262,1708625519317,-851.67,0.00033698,4]
[314899263,1708625519327,-500.0,0.00033698,2]
[314899264,1708625519337,-500.0,0.00033698,4]
[314899265,1708625519347,-572.75,0.00033698,4]
[314899266,1708625519356,-583.46,0.00033698,4]
[314899267,1708625519366,-1131.89,0.00033698,4]
[314899268,1708625519375,-500.0,0.00033698,4]
[314899269,1708625519385,-500.0,0.00033698,4]
[314899270,1708625519397,-495.85890189,0.00033698,4]
[314899271,1708625519407,-500.0,0.00033698,4]
[314899272,1708625519417,-500.0,0.00033698,4]
[314899273,1708625519427,-568.65,0.00033698,4]
[314899274,1708625519437,-500.0,0.00033698,4]
[314899275,1708625519446,-515.7048019,0.00033698,4]
[314899276,1708625519457,-500.0,0.00033698,4]
[314899277,1708625519467,-1313.43,0.00033698,4]
[314899278,1708625519477,-514.02194776,0.00033698,4]
[314899279,1708625519488,-500.0,0.00033698,4]
[314899280,1708625519498,-3828.9,0.00033698,4]
[314899281,1708625519507,-1312.47,0.00033698,4]
[314899282,1708625519517,-500.0,0.00033698,4]
[314899283,1708625519527,-500.0,0.00033698,4]
[314899284,1708625519536,-637.56,0.00033698,4]
[314899285,1708625519546,-431.71035334,0.00033698,4]
[314899286,1708625519556,-500.0,0.00033698,4]
[314899287,1708625519565,-500.0,0.00033698,4]
[314899288,1708625519574,-771.01,0.00033698,4]
[314899289,1708625519583,-670.32,0.00033698,4]
[314899290,1708625519593,-905.48,0.00033698,4]
[314899291,1708625519602,-587.38,0.00033698,4]
[314899292,1708625519611,-500.0,0.00033698,4]
[314899293,1708625519621,-500.0,0.00033698,4]
[314899294,1708625519630,-500.0,0.00033698,4]
[314899295,1708625519639,-500.0,0.00033698,4]
[314899296,1708625519650,-500.0,0.00033698,4]
[314899297,1708625519659,-500.0,0.00033698,4]
[314899298,1708625519668,-500.0,0.00033698,4]
[314899299,1708625519678,-500.0,0.00033698,4]
[314899300,1708625519687,-159.745135,0.00033698,7]
[314899301,1708625519697,-500.0,0.00033698,4]
[314899302,1708625519707,-500.0,0.00033698,4]
[314899303,1708625519716,-1115.25,0.00033698,4]
[314899304,1708625519725,-159.745135,0.00033698,7]
[314899305,1708625519735,-617.27,0.00033698,4]
[314899306,1708625519744,-500.0,0.00033698,4]
[314899307,1708625519754,-1239.94,0.00033698,4]
[314899308,1708625519763,-920.63,0.00033698,4]
[314899309,1708625519772,-799.98,0.00033698,4]
[314899310,1708625519782,-1030.29,0.00033698,4]
[314899311,1708625519792,-500.0,0.00033698,4]
[314899312,1708625519801,-500.0,0.00033698,4]
[314899313,1708625519810,-209.966881,0.00033698,7]
[314899314,1708625519818,-209.966881,0.00033698,7]
[314899315,1708625519828,-728.76,0.00033698,4]
[314899316,1708625519838,-741.55,0.00033698,4]
[314899317,1708625519847,-500.0,0.00033698,4]
[314899318,1708625519856,-617.56,0.00033698,4]
[314899319,1708625519865,-664.22,0.00033698,4]
[314899320,1708625519875,-582.0,0.00033698,4]
[314899321,1708625519886,-500.0,0.00033698,4]
[314899322,1708625519895,-541.78,0.00033698,4]
[314899323,1708625519904,-764.35,0.00033698,4]
[314899324,1708625519913,-500.0,0.00033698,4]
[314899325,1708625519924,-500.0,0.00033698,4]
[314899326,1708625519933,-1242.24,0.00033698,4]
[314899327,1708625519942,-872.206723,0.00033698,7]
[314899328,1708625519952,-1041.1,0.00033698,4]
[314899329,1708625519964,-500.0,0.00033698,4]
[314899330,1708625519975,-1494.6,0.00033698,4]
[314899331,1708625519985,-500.0,0.00033698,4]
[314899332,1708625519994,-872.206723,0.00033698,7]
[314899333,1708625520003,-500.0,0.00033698,4]
[314899334,1708625520013,-983.44,0.00033698,4]
[314899335,1708625520022,-500.0,0.00033698,4]
[314899336,1708625520032,-273.001206,0.00033698,7]
[314899337,1708625520041,-871.52,0.00033698,4]
[314899338,1708625520051,-273.001206,0.00033698,7]
[314899339,1708625520060,-937.84,0.00033698,4]
[314899340,1708625520069,-500.0,0.00033698,4]
[314899341,1708625520079,-500.0,0.00033698,4]
[314899342,1708625520088,-940.94,0.00033698,4]
[314899343,1708625520096,-500.0,0.00033698,4]
[314899344,1708625520106,-500.0,0.00033698,4]
[314899345,1708625520115,-500.0,0.00033698,4]
[314899346,1708625520125,-1267.73,0.00033698,4]
[314899347,1708625520134,-900.68,0.00033698,4]
[314899348,1708625520143,-988.42,0.00033698,4]
[314899349,1708625520152,-598.66,0.00033698,4]
[314899350,1708625520161,-1407.88,0.00033698,4]
[314899351,1708625520170,-500.0,0.00033698,4]
[314899352,1708625520179,-500.0,0.00033698,4]
[314899353,1708625520189,-1015.51,0.00033698,4]
[314899354,1708625520198,-480.02462934,0.00033698,4]
[314899355,1708625520208,-500.0,0.00033698,4]
[314899356,1708625520218,-500.0,0.00033698,4]
[314899357,1708625520227,-824.67,0.00033698,4]
[314899358,1708625520236,-1044.83,0.00033698,4]
[314899359,1708625520246,-625.15,0.00033698,4]
[314899360,1708625520255,-848.25,0.00033698,4]
[314899361,1708625520265,-715.27,0.00033698,4]
[314899362,1708625520275,-330.96226977,0.00033698,4]
[314899363,1708625520285,-500.0,0.00033698,4]
[314899364,1708625520294,-1782.080711,0.00033698,7]
[314899365,1708625520304,-500.0,0.00033698,4]
[314899366,1708625520314,-500.0,0.00033698,4]
[314899367,1708625520323,-1782.080711,0.00033698,7]
[314899368,1708625520333,-500.0,0.00033698,4]
[314899369,1708625520343,-979.83,0.00033698,4]
[314899370,1708625520353,-240.853509,0.00033698,7]
[314899371,1708625520362,-1292.8,0.00033698,4]
[314899372,1708625520371,-559.36905504,0.00033698,4]
[314899373,1708625520381,-240.853509,0.00033698,7]
[314899374,1708625520392,-579.59,0.00033698,4]
[314899375,1708625520404,-651.21,0.00033698,4]
[314899376,1708625520414,-709.91,0.00033698,4]
[314899377,1708625520424,-1259.45,0.00033698,4]
[314899378,1708625520434,-150.0,0.00033698,4]
[314899379,1708625520444,-151.0,0.00033698,7]
[314899380,1708625520455,-500.0,0.00033698,4]
[314899381,1708625520466,-695.7,0.00033698,4]
[314899382,1708625520561,-972.69,0.00033698,4]
[314899383,1708625520571,-521.447789,0.00033698,7]
[314899384,1708625520581,-500.0,0.00033698,4]
[314899385,1708625520590,-500.0,0.00033698,4]
[314899386,1708625520599,-1106.66,0.00033698,4]
[314899387,1708625520608,-521.447789,0.00033698,7]
[314899388,1708625520617,-1263.76,0.00033698,4]
[314899389,1708625520626,-211.94506272,0.00033698,4]
[314899390,1708625520636,-500.0,0.00033698,4]
[314899391,1708625520647,-1595.37,0.00033698,4]
[314899392,1708625520656,-500.0,0.00033698,4]
[314899393,1708625520665,-535.25,0.00033698,4]
[314899394,1708625520674,-1321.09,0.00033698,4]
[314899395,1708625520683,-500.0,0.00033698,4]
[314899396,1708625520692,-841.52,0.00033698,4]
[314899397,1708625520701,-162.346877,0.00033698,2]
[314899398,1708625520710,-931.24,0.00033698,4]
[314899399,1708625520719,-593.4,0.00033698,4]
[314899400,1708625520728,-162.346877,0.00033698,2]
[314899401,1708625520737,-500.0,0.00033698,4]
[314899402,1708625520747,-1083.33,0.00033698,4]
[314899403,1708625520756,-1312.31,0.00033698,4]
[314899404,1708625520765,-1322.97,0.00033698,4]
[314899405,1708625520774,-6861.46,0.00033698,4]
[314899406,1708625520784,-514.1186548,0.00033698,4]